[Event "48th Rilton Cup 2018"]
[Site "Stockholm"]
[Date "2018.12.27"]
[Round "1"]
[White "Couso, Luis"]
[Black "Moroni, Luca Jr"]
[Result "0-1"]
[ECO "A13"]
[WhiteElo "2285"]
[BlackElo "2564"]
[Annotator "ChessBase"]
[PlyCount "106"]
[EventDate "2018.12.27"]
[EventType "swiss"]
[EventCountry "SWE"]
[SourceTitle "playchess.com"]
[Source "ChessBase"]
[SourceQuality "1"]
[TimeControl "40/5400+30:1800+30"]

1. c4 {[%emt 0:00:00]} e6 {[%emt 0:00:00]} 2. g3 {[%emt 0:00:00]} d5 {[%emt 0:00:00]} 3. Bg2 {[%emt 0:00:00]} Nf6 {[%emt 0:00:00]} 4. Nf3 {[%emt 0:00:17]} dxc4 {[%emt 0:00:00]} 5. Na3 {[%emt 0:00:14]} c6 {[%emt 0:01:55]} 6. Nxc4 {[%emt 0:00:59]} Be7 {[%emt 0:01:02]} 7. O-O {[%emt 0:01:29]} O-O {[%emt 0:00:06]} 8. d4 {[%emt 0:01:49]} b5 {[%emt 0:00:48]} 9. Nce5 {[%emt 0:00:31]} Bb7 {[%emt 0:00:05]} 10. Bg5 {[%emt 0:05:35]} Nbd7 {[%emt 0:02:43]} 11. Bxf6 {[%emt 0:11:38]} Nxf6 {[%emt 0:04:10]} 12. Rc1 {[%emt 0:01:15]} Qb6 {[%emt 0:03:06]} 13. Nd3 {[%emt 0:02:49]} Rfd8 {[%emt 0:03:03]} 14. Qc2 {[%emt 0:09:29]} Nd7 {[%emt 0:06:06]} 15. e3 {[%emt 0:03:27]} Rac8 {[%emt 0:04:30]} 16. b4 {[%emt 0:00:29]} a5 {[%emt 0:00:35]} 17. a3 {[%emt 0:00:06]} Ra8 {[%emt 0:03:15]} 18. h4 {[%emt 0:02:00]} axb4 {[%emt 0:04:00]} 19. axb4 {[%emt 0:00:06]} Ra4 {[%emt 0:00:38]} 20. Rb1 {[%emt 0:01:58]} Qa6 {[%emt 0:08:21]} 21. Ng5 {[%emt 0:03:51]} Ra2 {[%emt 0:05:20]} 22. Rb2 {[%emt 0:01:44]} Rxb2 {[%emt 0:00:54]} 23. Qxb2 {[%emt 0:02:24]} Ra8 {[%emt 0:01:10]} 24. Rc1 {[%emt 0:05:05]} Qa3 {[%emt 0:06:21]} 25. Qb1 {[%emt 0:02:51]} h6 {[%emt 0:02:36]} 26. Ne4 {[%emt 0:01:12]} Ra4 {[%emt 0:02:02]} 27. Rc3 {[%emt 0:08:57]} Qa1 {[%emt 0:01:55]} 28. Rc1 {[%emt 0:05:28]} Qxb1 {[%emt 0:01:53]} 29. Rxb1 {[%emt 0:00:09]} Kf8 {[%emt 0:02:13]} 30. g4 {[%emt 0:03:41]} Ke8 {[%emt 0:04:39]} 31. Kh2 {[%emt 0:05:11]} Kd8 {[%emt 0:02:45]} 32. Kg3 {[%emt 0:02:15]} Kc7 {[%emt 0:01:33]} 33. g5 {[%emt 0:03:32]} Ra3 {[%emt 0:03:36]} 34. Bf1 {[%emt 0:02:53]} Bc8 {[%emt 0:03:57]} 35. Rc1 {[%emt 0:03:05]} Kb6 {[%emt 0:03:48]} 36. Ndc5 {[%emt 0:03:27]} Nxc5 {[%emt 0:02:35]} 37. bxc5+ {[%emt 0:01:08]} Kc7 {[%emt 0:02:13]} 38. Kf4 {[%emt 0:01:01]} f5 {[%emt 0:02:30]} 39. Nd6 {[%emt 0:02:04]} Bd7 {[%emt 0:06:35]} 40. Nf7 {[%emt 0:01:43]} Be8 {[%emt 0:02:47]} 41. Ne5 {[%emt 0:31:01]} Ra2 {[%emt 0:30:54]} 42. f3 {[%emt 0:02:18]} Bd8 {[%emt 0:03:18]} 43. Bh3 {[%emt 0:00:00]} Bh5 {[%emt 0:00:00]} 44. Rg1 {[%emt 0:00:00]} hxg5+ {[%emt 0:00:00]} 45. hxg5 {[%emt 0:00:00]} g6 {[%emt 0:00:00]} 46. Rb1 {[%emt 0:00:00]} Ra6 {[%emt 0:00:00]} 47. e4 {[%emt 0:00:00]} Ra4 {[%emt 0:00:00]} 48. Rd1 {[%emt 0:00:00]} Be7 {[%emt 0:00:00]} 49. Rd3 {[%emt 0:00:00]} Ra1 {[%emt 0:00:00]} 50. Nf7 {[%emt 0:00:00]} b4 {[%emt 0:00:00]} 51. d5 {[%emt 0:00:00]} cxd5 {[%emt 0:00:00]} 52. exd5 {[%emt 0:00:00]} exd5 {[%emt 0:00:00]} 53. Rxd5 {[%emt 0:00:00]} b3 {[%emt 0:00:00]} 0-1

[Event "48th Rilton Cup 2018"]
[Site "Stockholm"]
[Date "2018.12.27"]
[Round "1"]
[White "Risting, Eivind Olav"]
[Black "Heberla, Bartlomiej"]
[Result "0-1"]
[ECO "E94"]
[WhiteElo "2281"]
[BlackElo "2550"]
[Annotator "ChessBase"]
[PlyCount "62"]
[EventDate "2018.12.27"]
[EventType "swiss"]
[EventCountry "SWE"]
[SourceTitle "playchess.com"]
[Source "ChessBase"]
[SourceQuality "1"]
[TimeControl "40/5400+30:1800+30"]

1. d4 {[%emt 0:00:00]} Nf6 {[%emt 0:00:00]} 2. c4 {[%emt 0:00:01]} d6 {[%emt 0:00:00]} 3. Nc3 {[%emt 0:00:45]} Nbd7 {[%emt 0:00:29]} 4. e4 {[%emt 0:00:57]} e5 {[%emt 0:00:07]} 5. Nf3 {[%emt 0:00:10]} g6 {[%emt 0:00:06]} 6. Be2 {[%emt 0:00:19]} Bg7 {[%emt 0:00:07]} 7. O-O {[%emt 0:00:09]} O-O {[%emt 0:00:04]} 8. Be3 {[%emt 0:04:56]} c6 {[%emt 0:02:00]} 9. d5 {[%emt 0:01:33]} c5 {[%emt 0:01:07]} 10. Ne1 {[%emt 0:08:24]} a6 {[%emt 0:00:43]} 11. a3 {[%emt 0:02:23]} Ne8 {[%emt 0:01:41]} 12. Nd3 {[%emt 0:03:21]} f5 {[%emt 0:00:07]} 13. exf5 {[%emt 0:02:05]} gxf5 {[%emt 0:00:09]} 14. f4 {[%emt 0:02:00]} e4 {[%emt 0:11:31]} 15. Nf2 {[%emt 0:01:20]} b5 {[%emt 0:00:40]} 16. cxb5 {[%emt 0:09:37]} axb5 {[%emt 0:12:04]} 17. Bxb5 {[%emt 0:02:52]} Nc7 {[%emt 0:00:07]} 18. Bc6 {[%emt 0:06:56]} Rb8 {[%emt 0:00:47]} 19. Rb1 {[%emt 0:02:09]} Nb6 {[%emt 0:00:09]} 20. Qc2 {[%emt 0:17:19]} Nc4 {[%emt 0:04:14]} 21. Bc1 {[%emt 0:00:36]} Ba6 {[%emt 0:00:16]} 22. Re1 {[%emt 0:03:50]} Bd4 {[%emt 0:13:25]} 23. Ncd1 {[%emt 0:06:15]} Nb6 {[%emt 0:10:26]} 24. Ne3 {[%emt 0:03:51]} Nbxd5 {[%emt 0:05:09]} 25. Bxd5+ {[%emt 0:09:20]} Nxd5 {[%emt 0:00:07]} 26. g3 {[%emt 0:04:25]} Nxe3 {[%emt 0:08:03]} 27. Bxe3 {[%emt 0:00:04]} d5 {[%emt 0:00:06]} 28. Bxd4 {[%emt 0:01:44]} cxd4 {[%emt 0:02:25]} 29. Qa4 {[%emt 0:01:48]} Qb6 {[%emt 0:00:49]} 30. Rbc1 {[%emt 0:01:13]} d3 {[%emt 0:02:09]} 31. Rc6 {[%emt 0:01:00]} Bb5 {[%emt 0:00:16]} 0-1

[Event "48th Rilton Cup 2018"]
[Site "Stockholm"]
[Date "2018.12.27"]
[Round "1"]
[White "Mullick, Raahil"]
[Black "Debashis, Das"]
[Result "0-1"]
[ECO "B90"]
[WhiteElo "2276"]
[BlackElo "2544"]
[Annotator "ChessBase"]
[PlyCount "120"]
[EventDate "2018.12.27"]
[EventType "swiss"]
[EventCountry "SWE"]
[SourceTitle "playchess.com"]
[Source "ChessBase"]
[SourceQuality "1"]
[TimeControl "40/5400+30:1800+30"]

1. e4 {[%emt 0:00:00]} c5 {[%emt 0:00:01]} 2. Nf3 {[%emt 0:00:00]} d6 {[%emt 0:00:09]} 3. d4 {[%emt 0:00:00]} cxd4 {[%emt 0:00:15]} 4. Nxd4 {[%emt 0:00:00]} Nf6 {[%emt 0:00:05]} 5. Nc3 {[%emt 0:00:00]} a6 {[%emt 0:00:06]} 6. Be3 {[%emt 0:00:00]} e5 {[%emt 0:00:35]} 7. Nb3 {[%emt 0:00:00]} Be6 {[%emt 0:00:04]} 8. f3 {[%emt 0:00:04]} h5 {[%emt 0:00:05]} 9. Nd5 {[%emt 0:00:03]} Bxd5 {[%emt 0:00:06]} 10. exd5 {[%emt 0:00:03]} Nbd7 {[%emt 0:00:07]} 11. Qd2 {[%emt 0:00:09]} g6 {[%emt 0:00:12]} 12. Be2 {[%emt 0:00:05]} Qc7 {[%emt 0:00:11]} 13. O-O {[%emt 0:04:39]} Nb6 {[%emt 0:00:16]} 14. c4 {[%emt 0:10:17]} Nxc4 {[%emt 0:01:04]} 15. Bxc4 {[%emt 0:00:13]} Qxc4 {[%emt 0:00:05]} 16. Rfd1 {[%emt 0:00:16]} Be7 {[%emt 0:05:13]} 17. Na5 {[%emt 0:08:20]} Qb5 {[%emt 0:02:48]} 18. a4 {[%emt 0:03:27]} Qd7 {[%emt 0:00:10]} 19. Nc4 {[%emt 0:02:01]} Rb8 {[%emt 0:05:55]} 20. Qb4 {[%emt 0:13:17]} O-O {[%emt 0:02:12]} 21. Ra3 {[%emt 0:02:08]} Rfe8 {[%emt 0:22:28]} 22. Rb3 {[%emt 0:04:11]} e4 {[%emt 0:16:03]} 23. Ba7 {[%emt 0:16:32]} Rbd8 {[%emt 0:00:54]} 24. a5 {[%emt 0:03:16]} Qf5 {[%emt 0:11:08]} 25. Ne3 {[%emt 0:02:30]} Qg5 {[%emt 0:01:31]} 26. fxe4 {[%emt 0:07:35]} Bf8 {[%emt 0:02:10]} 27. Rd4 {[%emt 0:04:16]} Bg7 {[%emt 0:03:31]} 28. Rc4 {[%emt 0:01:57]} Rd7 {[%emt 0:03:52]} 29. Nf1 {[%emt 0:06:52]} Ng4 {[%emt 0:03:40]} 30. h3 {[%emt 0:05:07]} Ne5 {[%emt 0:00:09]} 31. Rc2 {[%emt 0:00:15]} Rf8 {[%emt 0:08:21]} 32. Be3 {[%emt 0:02:47]} Qe7 {[%emt 0:01:24]} 33. Rf2 {[%emt 0:00:59]} Rc8 {[%emt 0:00:39]} 34. Nd2 {[%emt 0:04:18]} Rc2 {[%emt 0:02:59]} 35. Bb6 {[%emt 0:00:43]} Bh6 {[%emt 0:02:59]} 36. Nf1 {[%emt 0:01:05]} Rc4 {[%emt 0:03:27]} 37. Qe1 {[%emt 0:00:01]} Rc1 {[%emt 0:00:30]} 38. Qe2 {[%emt 0:00:37]} Nc4 {[%emt 0:01:05]} 39. Bd4 {[%emt 0:00:51]} Rc7 {[%emt 0:01:42]} 40. Rc3 {[%emt 0:00:32]} Ne5 {[%emt 0:00:57]} 41. Rxc7 {[%emt 0:06:29]} Rxc7 {[%emt 0:00:06]} 42. Bc3 {[%emt 0:01:04]} Bg7 {[%emt 0:00:52]} 43. Nd2 {[%emt 0:01:33]} Nd7 {[%emt 0:01:03]} 44. Bxg7 {[%emt 0:01:28]} Kxg7 {[%emt 0:00:02]} 45. Nc4 {[%emt 0:01:23]} Ne5 {[%emt 0:01:31]} 46. Nb6 {[%emt 0:01:34]} Qg5 {[%emt 0:02:17]} 47. Rf1 {[%emt 0:01:58]} Rc5 {[%emt 0:02:59]} 48. Qf2 {[%emt 0:02:42]} Qd8 {[%emt 0:03:08]} 49. Qd2 {[%emt 0:04:22]} Qc7 {[%emt 0:04:38]} 50. Na8 {[%emt 0:00:53]} Qe7 {[%emt 0:04:46]} 51. Rc1 {[%emt 0:04:33]} Nd7 {[%emt 0:00:07]} 52. b4 {[%emt 0:05:11]} Rxc1+ {[%emt 0:00:22]} 53. Qxc1 {[%emt 0:00:01]} Nf6 {[%emt 0:05:21]} 54. Qc3 {[%emt 0:02:06]} Kh7 {[%emt 0:01:23]} 55. Nc7 {[%emt 0:02:11]} Nxe4 {[%emt 0:00:26]} 56. Qe3 {[%emt 0:00:25]} Qe5 {[%emt 0:01:42]} 57. Qb6 {[%emt 0:00:36]} Ng3 {[%emt 0:01:39]} 58. Qf2 {[%emt 0:00:29]} Kg8 {[%emt 0:02:04]} 59. b5 {[%emt 0:00:32]} h4 {[%emt 0:01:44]} 60. Qd2 {[%emt 0:00:31]} Qa1+ {[%emt 0:00:06]} 0-1

[Event "48th Rilton Cup 2018"]
[Site "Stockholm"]
[Date "2018.12.27"]
[Round "1"]
[White "Storme, Isak"]
[Black "Lalith Babu M R"]
[Result "0-1"]
[ECO "C54"]
[WhiteElo "2271"]
[BlackElo "2529"]
[Annotator "ChessBase"]
[PlyCount "70"]
[EventDate "2018.12.27"]
[EventType "swiss"]
[EventCountry "SWE"]
[SourceTitle "playchess.com"]
[Source "ChessBase"]
[SourceQuality "1"]
[TimeControl "40/5400+30:1800+30"]

1. e4 {[%emt 0:00:00]} e5 {[%emt 0:00:00]} 2. Nf3 {[%emt 0:00:00]} Nc6 {[%emt 0:00:00]} 3. Bc4 {[%emt 0:00:20]} Bc5 {[%emt 0:00:19]} 4. c3 {[%emt 0:00:49]} Nf6 {[%emt 0:00:17]} 5. d3 {[%emt 0:00:08]} O-O {[%emt 0:00:27]} 6. O-O {[%emt 0:02:20]} d5 {[%emt 0:00:31]} 7. exd5 {[%emt 0:00:40]} Nxd5 {[%emt 0:00:04]} 8. Re1 {[%emt 0:03:31]} Bg4 {[%emt 0:00:35]} 9. Nbd2 {[%emt 0:15:07]} Nb6 {[%emt 0:02:04]} 10. Bb5 {[%emt 0:03:24]} Bd6 {[%emt 0:02:04]} 11. Ne4 {[%emt 0:04:38]} Re8 {[%emt 0:09:44]} 12. h3 {[%emt 0:08:02]} Bh5 {[%emt 0:03:02]} 13. Ng3 {[%emt 0:10:12]} Bg6 {[%emt 0:01:30]} 14. h4 {[%emt 0:08:09]} h6 {[%emt 0:00:54]} 15. Be3 {[%emt 0:07:20]} a6 {[%emt 0:01:50]} 16. Bxc6 {[%emt 0:00:47]} bxc6 {[%emt 0:00:06]} 17. h5 {[%emt 0:03:55]} Bh7 {[%emt 0:00:47]} 18. d4 {[%emt 0:03:30]} e4 {[%emt 0:02:31]} 19. Ne5 {[%emt 0:01:11]} Bxe5 {[%emt 0:05:11]} 20. dxe5 {[%emt 0:00:07]} Nc4 {[%emt 0:06:09]} 21. Bd4 {[%emt 0:01:15]} c5 {[%emt 0:00:20]} 22. Bxc5 {[%emt 0:01:45]} Nxb2 {[%emt 0:00:27]} 23. Qd4 {[%emt 0:07:45]} Nd3 {[%emt 0:02:44]} 24. Re3 {[%emt 0:01:23]} Nxe5 {[%emt 0:05:12]} 25. Rd1 {[%emt 0:13:18]} Qh4 {[%emt 0:06:14]} 26. Qa4 {[%emt 0:01:53]} Ng4 {[%emt 0:00:58]} 27. Re2 {[%emt 0:00:33]} e3 {[%emt 0:07:33]} 28. Rd4 {[%emt 0:01:08]} Qh2+ {[%emt 0:03:02]} 29. Kf1 {[%emt 0:00:05]} Nxf2 {[%emt 0:00:06]} 30. Rxf2 {[%emt 0:00:13]} Qxg3 {[%emt 0:00:19]} 31. Re2 {[%emt 0:00:26]} Qg5 {[%emt 0:01:33]} 32. Qc4 {[%emt 0:00:41]} Re5 {[%emt 0:00:23]} 33. Rf4 {[%emt 0:00:23]} Rxc5 {[%emt 0:00:37]} 34. Qxf7+ {[%emt 0:00:08]} Kh8 {[%emt 0:00:03]} 35. Rxe3 {[%emt 0:00:12]} Bg8 {[%emt 0:00:05]} 0-1

[Event "48th Rilton Cup 2018"]
[Site "Stockholm"]
[Date "2018.12.28"]
[Round "2"]
[White "Lagarde, Maxime"]
[Black "Koykka, Pekka"]
[Result "1-0"]
[ECO "D00"]
[WhiteElo "2616"]
[BlackElo "2405"]
[Annotator "ChessBase"]
[PlyCount "65"]
[EventDate "2018.12.27"]
[EventType "swiss"]
[EventCountry "SWE"]
[SourceTitle "playchess.com"]
[Source "ChessBase"]
[SourceQuality "1"]
[TimeControl "40/5400+30:1800+30"]

1. d4 {[%emt 0:00:00]} d5 {[%emt 0:00:00]} 2. Bf4 {[%emt 0:04:15]} Nf6 {[%emt 0:00:48]} 3. e3 {[%emt 0:03:07]} Bf5 {[%emt 0:10:21]} 4. Nc3 {[%emt 0:05:08]} e6 {[%emt 0:01:19]} 5. Nb5 {[%emt 0:05:14]} Na6 {[%emt 0:01:14]} 6. a3 {[%emt 0:12:26]} c6 {[%emt 0:11:30]} 7. Nc3 {[%emt 0:00:14]} Nb8 {[%emt 0:09:59]} 8. Nf3 {[%emt 0:06:14]} Be7 {[%emt 0:09:16]} 9. Ne5 {[%emt 0:21:03]} h6 {[%emt 0:06:19]} 10. h4 {[%emt 0:06:41]} Bh7 {[%emt 0:09:07]} 11. Bd3 {[%emt 0:02:46]} Nbd7 {[%emt 0:08:26]} 12. Qf3 {[%emt 0:05:14]} Nxe5 {[%emt 0:02:21]} 13. dxe5 {[%emt 0:00:42]} Nd7 {[%emt 0:00:30]} 14. Qg4 {[%emt 0:08:30]} Bf8 {[%emt 0:01:11]} 15. Bg3 {[%emt 0:04:53]} Qb6 {[%emt 0:09:32]} 16. b4 {[%emt 0:03:49]} Bxd3 {[%emt 0:06:02]} 17. cxd3 {[%emt 0:00:11]} Qa6 {[%emt 0:02:24]} 18. Qd1 {[%emt 0:00:26]} c5 {[%emt 0:03:35]} 19. O-O {[%emt 0:01:00]} Be7 {[%emt 0:01:18]} 20. bxc5 {[%emt 0:02:39]} Nxc5 {[%emt 0:00:56]} 21. d4 {[%emt 0:00:09]} Nd7 {[%emt 0:00:19]} 22. Qg4 {[%emt 0:00:33]} Qd3 {[%emt 0:03:20]} 23. Qxg7 {[%emt 0:02:23]} Rh7 {[%emt 0:00:45]} 24. Qg8+ {[%emt 0:00:18]} Nf8 {[%emt 0:00:43]} 25. Rfc1 {[%emt 0:03:31]} h5 {[%emt 0:00:28]} 26. Rab1 {[%emt 0:00:36]} Bxa3 {[%emt 0:00:41]} 27. Rxb7 {[%emt 0:00:52]} Bxc1 {[%emt 0:00:16]} 28. Nb5 {[%emt 0:00:07]} Ba3 {[%emt 0:00:47]} 29. Nd6+ {[%emt 0:00:53]} Bxd6 {[%emt 0:00:18]} 30. exd6 {[%emt 0:00:02]} O-O-O {[%emt 0:00:22]} 31. Rc7+ {[%emt 0:00:04]} Kb8 {[%emt 0:00:06]} 32. d7 {[%emt 0:00:06]} Qb1+ {[%emt 0:01:12]} 33. Rc1+ {[%emt 0:00:15]} 1-0

[Event "48th Rilton Cup 2018"]
[Site "Stockholm"]
[Date "2018.12.28"]
[Round "2"]
[White "Karthikeyan, Murali"]
[Black "Lindberg, Bengt"]
[Result "1-0"]
[ECO "C77"]
[WhiteElo "2591"]
[BlackElo "2404"]
[Annotator "ChessBase"]
[PlyCount "67"]
[EventDate "2018.12.27"]
[EventType "swiss"]
[EventCountry "SWE"]
[SourceTitle "playchess.com"]
[Source "ChessBase"]
[SourceQuality "1"]
[TimeControl "40/5400+30:1800+30"]

1. e4 {[%emt 0:00:00]} e5 {[%emt 0:00:00]} 2. Nf3 {[%emt 0:00:00]} Nc6 {[%emt 0:00:00]} 3. Bb5 {[%emt 0:00:00]} a6 {[%emt 0:00:05]} 4. Ba4 {[%emt 0:00:00]} Nf6 {[%emt 0:00:16]} 5. d3 {[%emt 0:00:05]} b5 {[%emt 0:00:24]} 6. Bb3 {[%emt 0:00:08]} Bc5 {[%emt 0:00:16]} 7. Nc3 {[%emt 0:00:46]} d6 {[%emt 0:00:18]} 8. Nd5 {[%emt 0:02:34]} h6 {[%emt 0:01:00]} 9. c3 {[%emt 0:00:46]} O-O {[%emt 0:00:30]} 10. Nxf6+ {[%emt 0:00:47]} Qxf6 {[%emt 0:00:13]} 11. Bd5 {[%emt 0:00:08]} Bd7 12. Rg1 h5 13. h3 Rae8 14. Bg5 Qg6 15. Qd2 Nd8 16. O-O-O Ne6 17. Be3 c6 18. Bb3 a5 19. g4 Qf6 20. Rg3 hxg4 21. hxg4 a4 22. Bxe6 fxe6 23. Rh1 Qxf3 24. Rxf3 Rxf3 25. d4 exd4 26. cxd4 Bb6 27. e5 Ref8 28. exd6 a3 29. bxa3 Ra8 30. Qd3 Ra4 31. Qh7+ Kf8 32. Qh8+ Kf7 33. Rh7 Rc4+ 34. Kb1 1-0

[Event "48th Rilton Cup 2018"]
[Site "Stockholm"]
[Date "2018.12.28"]
[Round "2"]
[White "Santos Latasa, Jaime"]
[Black "Gorshtein, Ido"]
[Result "1-0"]
[ECO "B13"]
[WhiteElo "2584"]
[BlackElo "2384"]
[Annotator "ChessBase"]
[PlyCount "57"]
[EventDate "2018.12.27"]
[EventType "swiss"]
[EventCountry "SWE"]
[SourceTitle "playchess.com"]
[Source "ChessBase"]
[SourceQuality "1"]
[TimeControl "40/5400+30:1800+30"]

1. e4 {[%emt 0:00:00]} c6 {[%emt 0:00:00]} 2. d4 {[%emt 0:00:00]} d5 {[%emt 0:00:00]} 3. exd5 {[%emt 0:00:00]} cxd5 {[%emt 0:00:00]} 4. Bd3 {[%emt 0:00:00]} Nc6 {[%emt 0:00:00]} 5. c3 {[%emt 0:00:00]} Qc7 {[%emt 0:00:00]} 6. Ne2 {[%emt 0:00:07]} Bg4 {[%emt 0:00:00]} 7. O-O {[%emt 0:00:11]} e6 {[%emt 0:00:00]} 8. Qe1 {[%emt 0:00:05]} Nf6 {[%emt 0:02:35]} 9. Ng3 {[%emt 0:02:50]} Bd6 {[%emt 0:11:15]} 10. h3 {[%emt 0:00:52]} Bxg3 {[%emt 0:04:50]} 11. fxg3 {[%emt 0:01:03]} Bh5 {[%emt 0:00:02]} 12. Bg5 {[%emt 0:00:06]} Nd7 {[%emt 0:03:12]} 13. Nd2 {[%emt 0:00:33]} O-O {[%emt 0:01:38]} 14. g4 {[%emt 0:00:29]} Bg6 {[%emt 0:00:06]} 15. Bxg6 {[%emt 0:00:04]} hxg6 {[%emt 0:00:07]} 16. Nf3 {[%emt 0:00:03]} b5 {[%emt 0:28:20]} 17. Kh1 {[%emt 0:06:55]} Rae8 {[%emt 0:11:03]} 18. Bf4 {[%emt 0:04:15]} Qb6 {[%emt 0:07:19]} 19. Bd6 {[%emt 0:03:51]} Nxd4 {[%emt 0:00:56]} 20. Ng5 {[%emt 0:02:46]} f6 {[%emt 0:02:42]} 21. Bxf8 {[%emt 0:00:15]} Nc2 {[%emt 0:01:39]} 22. Qb1 {[%emt 0:00:53]} Nxf8 {[%emt 0:05:27]} 23. Qxc2 {[%emt 0:00:22]} fxg5 {[%emt 0:00:02]} 24. Rae1 {[%emt 0:00:17]} Qd6 {[%emt 0:03:52]} 25. Qd2 {[%emt 0:01:00]} Qe7 {[%emt 0:02:23]} 26. Qd3 {[%emt 0:04:45]} a6 {[%emt 0:01:09]} 27. b3 {[%emt 0:00:04]} Rd8 {[%emt 0:01:39]} 28. Qe3 {[%emt 0:01:31]} Rc8 {[%emt 0:00:34]} 29. Rf3 {[%emt 0:00:27]} 1-0

[Event "48th Rilton Cup 2018"]
[Site "Stockholm"]
[Date "2018.12.28"]
[Round "2"]
[White "Gopal G.N."]
[Black "Akesson, Ralf"]
[Result "1-0"]
[ECO "B12"]
[WhiteElo "2582"]
[BlackElo "2368"]
[Annotator "ChessBase"]
[PlyCount "63"]
[EventDate "2018.12.27"]
[EventType "swiss"]
[EventCountry "SWE"]
[SourceTitle "playchess.com"]
[Source "ChessBase"]
[SourceQuality "1"]
[TimeControl "40/5400+30:1800+30"]

1. e4 {[%emt 0:00:00]} c6 {[%emt 0:01:16]} 2. d4 {[%emt 0:00:00]} d5 {[%emt 0:00:09]} 3. e5 {[%emt 0:00:00]} Bf5 {[%emt 0:00:07]} 4. Nf3 {[%emt 0:00:00]} e6 {[%emt 0:00:11]} 5. Be2 {[%emt 0:00:00]} Nd7 {[%emt 0:00:20]} 6. O-O {[%emt 0:00:19]} h6 {[%emt 0:00:29]} 7. Nbd2 {[%emt 0:01:08]} Ne7 {[%emt 0:00:27]} 8. Nb3 {[%emt 0:01:21]} Qc7 {[%emt 0:05:05]} 9. a4 {[%emt 0:04:04]} a6 {[%emt 0:06:37]} 10. Bd2 {[%emt 0:13:24]} c5 {[%emt 0:06:07]} 11. Nxc5 {[%emt 0:24:26]} Nxc5 {[%emt 0:00:25]} 12. dxc5 {[%emt 0:00:02]} Qxc5 {[%emt 0:01:03]} 13. Rc1 {[%emt 0:00:46]} Nc6 {[%emt 0:07:27]} 14. Be3 {[%emt 0:04:11]} Qa5 {[%emt 0:01:27]} 15. c4 {[%emt 0:01:07]} dxc4 {[%emt 0:07:06]} 16. Rxc4 {[%emt 0:01:15]} Be7 {[%emt 0:03:08]} 17. Qb3 {[%emt 0:01:25]} Qc7 {[%emt 0:08:40]} 18. Nd4 {[%emt 0:03:04]} O-O {[%emt 0:05:22]} 19. Nxc6 {[%emt 0:07:42]} bxc6 {[%emt 0:00:12]} 20. Qc3 {[%emt 0:00:06]} Rac8 {[%emt 0:04:18]} 21. Rc1 {[%emt 0:02:51]} Qb8 {[%emt 0:04:53]} 22. Bc5 {[%emt 0:02:33]} Bxc5 {[%emt 0:05:13]} 23. Rxc5 {[%emt 0:00:06]} Qb7 {[%emt 0:00:43]} 24. Bf3 {[%emt 0:11:14]} Rb8 {[%emt 0:05:23]} 25. Rxc6 {[%emt 0:00:22]} Qxb2 {[%emt 0:00:25]} 26. Qxb2 {[%emt 0:00:12]} Rxb2 {[%emt 0:00:08]} 27. Rxa6 {[%emt 0:00:06]} Rfb8 {[%emt 0:05:43]} 28. h3 {[%emt 0:02:58]} Ra2 {[%emt 0:03:46]} 29. Ra7 {[%emt 0:08:19]} Bc2 {[%emt 0:13:19]} 30. a5 {[%emt 0:01:58]} Rb4 {[%emt 0:02:21]} 31. a6 {[%emt 0:06:25]} Rf4 {[%emt 0:02:22]} 32. Rd7 {[%emt 0:03:28]} 1-0

[Event "48th Rilton Cup 2018"]
[Site "Stockholm"]
[Date "2018.12.28"]
[Round "2"]
[White "Heberla, Bartlomiej"]
[Black "Slugin, Sergey"]
[Result "1-0"]
[ECO "C77"]
[WhiteElo "2550"]
[BlackElo "2359"]
[Annotator "ChessBase"]
[PlyCount "45"]
[EventDate "2018.12.27"]
[EventType "swiss"]
[EventCountry "SWE"]
[SourceTitle "playchess.com"]
[Source "ChessBase"]
[SourceQuality "1"]
[TimeControl "40/5400+30:1800+30"]

1. e4 {[%emt 0:00:00]} e5 {[%emt 0:02:44]} 2. Nf3 {[%emt 0:06:02]} Nc6 {[%emt 0:00:14]} 3. Bb5 {[%emt 0:02:10]} a6 {[%emt 0:00:20]} 4. Ba4 {[%emt 0:00:19]} Nf6 {[%emt 0:00:09]} 5. d3 {[%emt 0:01:56]} b5 {[%emt 0:00:57]} 6. Bb3 {[%emt 0:00:01]} Bc5 {[%emt 0:00:18]} 7. O-O {[%emt 0:00:13]} O-O {[%emt 0:00:14]} 8. c3 {[%emt 0:01:01]} Re8 {[%emt 0:07:34]} 9. Re1 {[%emt 0:02:24]} Bb7 {[%emt 0:03:23]} 10. Nbd2 {[%emt 0:04:54]} h6 {[%emt 0:01:17]} 11. Nf1 {[%emt 0:00:43]} d5 {[%emt 0:00:51]} 12. exd5 {[%emt 0:00:27]} Nxd5 {[%emt 0:00:13]} 13. d4 {[%emt 0:00:15]} Bb6 {[%emt 0:09:27]} 14. dxe5 {[%emt 0:05:40]} Nce7 {[%emt 0:01:04]} 15. Bc2 {[%emt 0:18:55]} Ng6 {[%emt 0:02:23]} 16. Be4 {[%emt 0:08:40]} Rb8 {[%emt 0:09:32]} 17. Qc2 {[%emt 0:01:27]} Qd7 {[%emt 0:04:42]} 18. Ng3 {[%emt 0:04:16]} Qe6 {[%emt 0:03:30]} 19. Bf5 {[%emt 0:04:46]} Qc6 {[%emt 0:00:41]} 20. e6 {[%emt 0:01:49]} Ngf4 {[%emt 0:04:20]} 21. Bxf4 {[%emt 0:05:43]} Nxf4 {[%emt 0:00:08]} 22. Be4 {[%emt 0:00:10]} Qc5 {[%emt 0:01:58]} 23. Bxb7 {[%emt 0:00:57]} 1-0